fUST/lending_fUST_20241207
["ID","MTS","AMOUNT","RATE_DAILY","PERIOD"]
[344513770,1733533832756,-500.0,0.00024973,2]
[344513772,1733533832766,-500.0,0.00024973,2]
[344513774,1733533832776,-500.0,0.00024973,2]
[344513776,1733533832785,-438.37192134,0.00024973,2]
[344513778,1733533832796,-226.00715512,0.00024999,2]
[344513780,1733533832806,-214.18571607,0.00024999,2]
[344513782,1733533832815,-507.93908029,0.00024999,2]
[344513784,1733533832825,-500.0,0.00024999,2]
[344513786,1733533832835,-500.0,0.00024999,2]
[344513788,1733533832844,-237.29392615,0.00024999,2]
[344513790,1733533832853,-5614.22295988,0.00025,2]
[344513792,1733533832862,-1000.0,0.00025,30]
[344513794,1733533832871,-590.50958874,0.00025,7]
[344513795,1733533832881,-151.0,0.00025,7]
[344513797,1733533832891,-151.0,0.00025,7]
[344513799,1733533832901,-151.0,0.00025,7]
[344513801,1733533832911,-274.84929,0.00025,7]
[344513802,1733533832920,-151.0,0.00025,7]
[344513803,1733533832930,-290.330658,0.00025,7]
[344513804,1733533832939,-151.0,0.00025,7]
[344513805,1733533832949,-3000.0,0.00025,2]
[344513807,1733533832958,-151.0,0.00025,7]
[344513808,1733533832968,-181.258381,0.00025,7]
[344513809,1733533832977,-181.258381,0.00025,7]
[344513810,1733533832987,-358.0,0.00025,2]
[344513811,1733533832996,-1968.029565,0.00025,7]
[344513813,1733533833006,-1968.029565,0.00025,7]
[344513814,1733533833016,-847.731523,0.00025,7]
[344513815,1733533833025,-847.731523,0.00025,7]
[344513816,1733533833035,-151.0,0.00025,7]
[344513817,1733533833047,-151.0,0.00025,7]
[344513818,1733533833057,-1373.871126,0.00025,7]
[344513819,1733533833067,-1373.871126,0.00025,7]
[344513820,1733533833077,-151.0,0.00025,7]
[344513822,1733533833087,-1467.950602,0.00025,2]
[344513823,1733533833097,-160.0,0.00025,3]
[344513824,1733533833107,-273.84243061,0.00025,5]
[344513825,1733533833118,-151.0,0.00025,7]
[344513826,1733533833129,-151.0,0.00025,7]
[344513827,1733533833139,-168.910183,0.00025,7]
[344513828,1733533833149,-168.910183,0.00025,7]
[344513829,1733533833160,-160.177174,0.00025,7]
[344513830,1733533833169,-160.177174,0.00025,7]
[344513831,1733533833179,-788.611752,0.00025,17]
[344513832,1733533833188,-112458.86229101,0.00025,2]
[344513833,1733533833201,-27123.94009243,0.00025,2]
[344513834,1733533833213,-3179.64018644,0.00025,2]
[344513835,1733533833239,-600.735,0.00025,2]
[344513836,1733533833252,-3014.87673045,0.00025,2]
[344513837,1733533833268,-3229.78014532,0.00025,2]
[344513838,1733533833281,-3142.3262907,0.00025,2]
[344513839,1733533833295,-3256.08403819,0.00025,2]
[344513840,1733533833307,-1876.71262425,0.00025,2]
[344513841,1733533833320,-4076.07600007,0.00025,2]
[344513842,1733533833332,-3435.11654243,0.00025,2]
[344513843,1733533833343,-2820.55919876,0.00025,2]
[344513844,1733533833355,-4119.15499782,0.00025,2]
[344513850,1733533838644,-32025.60023652,0.00025,2]
[344513851,1733533838655,-664.80000001,0.00025,2]
[344513852,1733533838719,-20405.85738924,0.00025,2]
[344513854,1733533840728,-332.91988524,0.00025,2]
[344513875,1733533844010,-1259.427271,0.00025,2]
[344513889,1733534185998,188.141847,0.00013973,2]
[344513891,1733534535962,334947.2734365,0.000139,2]
[344513892,1733534535988,67231.437103,0.000139,2]
[344513893,1733534536021,117109.68106393,0.000139,2]
[344520093,1733534804997,186.930012,0.00013973,2]
[344521341,1733534920537,6034.0,0.0001,2]
[344521897,1733535032060,-2217.61026608,0.00020377,2]
[344521900,1733535032071,-186.930012,0.00020447,2]
[344521901,1733535032081,-300.0,0.00022654,2]
[344521903,1733535032090,-300.0,0.00022654,2]
[344521905,1733535032100,-114.75580694,0.00022655,2]
[344521906,1733535032112,-24785.24419306,0.00022655,2]
[344521907,1733535032122,-4767.1894529,0.0002305,2]
[344521908,1733535032132,-168.528517,0.00023101,2]
[344521909,1733535032142,-253.330988,0.0002315,2]
[344521910,1733535032151,-171.965206,0.00023738,2]
[344521911,1733535032161,-345.038,0.0002375,2]
[344521913,1733535032171,-1258.32300418,0.000239,2]
[344521914,1733535032191,-46602.27270712,0.00024,2]
[344521915,1733535032202,-203.76071689,0.00024501,2]
[344521916,1733535032211,-420.0,0.00024601,2]
[344521917,1733535032221,-500.0,0.00024656,2]
[344521918,1733535032231,-474.67172151,0.00024656,2]
[344521919,1733535032241,-321.99705878,0.00024656,2]
[344521920,1733535032251,-500.0,0.00024656,2]
[344521921,1733535032260,-162.33336207,0.00024656,2]
[344521922,1733535032270,-500.0,0.00024656,2]
[344521923,1733535032280,-500.0,0.00024656,2]
[344521924,1733535032289,-500.0,0.00024656,2]
[344521925,1733535032299,-500.0,0.00024656,2]
[344521926,1733535032308,-500.0,0.00024656,2]
[344521927,1733535032318,-424.78459061,0.00024656,2]
[344521928,1733535032328,-500.0,0.00024656,2]
[344521929,1733535032338,-500.0,0.00024656,2]
[344521930,1733535032347,-500.0,0.00024656,2]
[344521931,1733535032358,-500.0,0.00024656,2]
[344521932,1733535032370,-500.0,0.00024656,2]
[344521933,1733535032380,-500.0,0.00024656,2]
[344521934,1733535032390,-500.0,0.00024656,2]
[344521935,1733535032400,-500.0,0.00024656,2]
[344521936,1733535032410,-500.0,0.00024656,2]
[344521937,1733535032421,-500.0,0.00024656,2]
[344521938,1733535032438,-500.0,0.00024656,2]
[344521940,1733535032447,-500.0,0.00024656,2]
[344521941,1733535032456,-500.0,0.00024656,2]
[344521942,1733535032466,-243.75874745,0.00024656,2]
[344521943,1733535032475,-500.0,0.00024656,2]
[344521944,1733535032485,-500.0,0.00024656,2]
[344521945,1733535032495,-500.0,0.00024656,2]
[344521946,1733535032504,-500.0,0.00024656,2]
[344521947,1733535032513,-500.0,0.00024657,2]
[344521948,1733535032522,-500.0,0.00024657,2]
[344521949,1733535032531,-593.25777336,0.00024657,2]
[344521950,1733535032541,-500.0,0.00024657,2]
[344521951,1733535032550,-224.84286475,0.00024657,2]
[344521952,1733535032559,-500.0,0.00024657,2]
[344521953,1733535032569,-500.0,0.00024657,2]
[344521954,1733535032578,-557.59117084,0.00024657,2]
[344521955,1733535032587,-500.0,0.00024657,2]
[344521956,1733535032601,-500.0,0.00024657,2]
[344521957,1733535032611,-471.43789867,0.00024657,2]
[344521958,1733535032621,-520.3042189,0.00024657,2]
[344521959,1733535032629,-500.0,0.00024657,2]
[344521960,1733535032641,-514.11721485,0.00024657,2]
[344521961,1733535032650,-500.0,0.00024657,2]
[344521962,1733535032660,-500.0,0.00024657,2]
[344521963,1733535032669,-500.0,0.00024657,2]
[344521964,1733535032684,-694.55,0.00024657,2]
[344521965,1733535032693,-192.97143062,0.00024657,2]
[344521966,1733535032702,-500.0,0.00024657,2]
[344521968,1733535032712,-500.0,0.00024657,2]
[344521969,1733535032721,-507.27341015,0.00024657,2]
[344521970,1733535032731,-500.0,0.00024657,2]
[344521971,1733535032741,-500.0,0.00024657,2]
[344521972,1733535032750,-500.0,0.00024657,2]
[344521973,1733535032760,-566.73211279,0.00024657,2]
[344521974,1733535032770,-500.0,0.00024657,2]
[344521975,1733535032780,-500.0,0.00024657,2]
[344521976,1733535032790,-502.74519798,0.00024657,2]
[344521977,1733535032799,-500.0,0.00024657,2]
[344521978,1733535032809,-500.0,0.00024657,2]
[344521979,1733535032818,-500.0,0.00024657,2]
[344521980,1733535032828,-500.0,0.00024657,2]
[344521981,1733535032838,-500.0,0.00024657,2]
[344521982,1733535032848,-504.80712988,0.00024657,2]
[344521983,1733535032857,-500.0,0.00024657,2]
[344521984,1733535032866,-500.0,0.00024657,2]
[344521985,1733535032876,-500.0,0.00024657,2]
[344521986,1733535032886,-500.0,0.00024657,2]
[344521987,1733535032895,-500.0,0.00024657,2]
[344521988,1733535032906,-500.0,0.00024657,2]
[344521989,1733535032917,-500.0,0.00024657,2]
[344521990,1733535032932,-367.03788039,0.00024657,2]
[344521991,1733535032942,-500.0,0.00024657,2]
[344521992,1733535032952,-500.0,0.00024657,2]
[344521993,1733535032963,-500.0,0.00024657,2]
[344521994,1733535032976,-500.0,0.00024657,2]
[344521996,1733535032987,-500.0,0.00024657,2]
[344521997,1733535032997,-500.0,0.00024657,2]
[344521998,1733535033008,-170.27128831,0.00024657,2]
[344521999,1733535033018,-744.25,0.00024657,2]
[344522000,1733535033029,-500.0,0.00024657,2]
[344522001,1733535033039,-414.75553262,0.00024657,2]
[344522002,1733535033049,-500.0,0.00024657,2]
[344522003,1733535033060,-500.0,0.00024657,2]
[344522004,1733535033071,-500.0,0.00024657,2]
[344522005,1733535033081,-508.45192265,0.00024657,2]
[344522006,1733535033092,-593.29565402,0.00024657,2]
[344522007,1733535033103,-563.96536601,0.00024657,2]
[344522008,1733535033113,-500.0,0.00024657,2]
[344522009,1733535033123,-500.0,0.00024657,2]
[344522010,1733535033133,-500.0,0.00024657,2]
[344522011,1733535033144,-500.0,0.00024657,2]
[344522012,1733535033154,-504.36611149,0.00024657,2]
[344522013,1733535033164,-500.0,0.00024657,2]
[344522014,1733535033174,-504.99541987,0.00024657,2]
[344522015,1733535033186,-500.0,0.00024657,2]
[344522016,1733535033196,-500.0,0.00024657,2]
[344522017,1733535033205,-536.30854227,0.00024657,2]
[344522018,1733535033214,-500.0,0.00024657,2]
[344522019,1733535033224,-500.0,0.00024657,2]
[344522020,1733535033235,-500.0,0.00024657,2]
[344522021,1733535033245,-500.0,0.00024657,2]
[344522022,1733535033255,-217.77707653,0.00024657,2]
[344522023,1733535033266,-500.0,0.00024657,2]
[344522024,1733535033276,-500.0,0.00024657,2]
[344522025,1733535033286,-500.0,0.00024657,2]
[344522026,1733535033296,-505.37398612,0.00024657,2]
[344522027,1733535033306,-500.0,0.00024657,2]
[344522028,1733535033317,-500.0,0.00024657,2]
[344522029,1733535033327,-500.0,0.00024657,2]
[344522030,1733535033336,-500.0,0.00024657,2]
[344522031,1733535033449,-973.55,0.00024657,2]
[344522032,1733535033459,-500.0,0.00024657,2]
[344522033,1733535033473,-500.0,0.00024657,2]
[344522034,1733535033484,-500.0,0.00024657,2]
[344522035,1733535033493,-500.0,0.00024657,2]
[344522036,1733535033504,-500.0,0.00024657,2]
[344522037,1733535033514,-500.0,0.00024657,2]
[344522038,1733535033524,-500.0,0.00024657,2]
[344522039,1733535033533,-165.71826401,0.00024657,2]
[344522040,1733535033543,-500.0,0.00024657,2]
[344522041,1733535033552,-500.0,0.00024657,2]
[344522042,1733535033562,-500.0,0.00024657,2]
[344522043,1733535033571,-500.0,0.00024657,2]
[344522044,1733535033581,-500.0,0.00024657,2]
[344522045,1733535033592,-500.0,0.00024657,2]
[344522046,1733535033603,-375.59138193,0.00024657,2]
[344522047,1733535033613,-500.0,0.00024657,2]
[344522048,1733535033623,-500.0,0.00024657,2]
[344522049,1733535033633,-500.0,0.00024657,2]
[344522050,1733535033642,-500.0,0.00024657,2]
[344522051,1733535033652,-500.0,0.00024657,2]
[344522052,1733535033662,-500.0,0.00024657,2]
[344522053,1733535033671,-502.98354513,0.00024657,2]
[344522054,1733535033683,-500.0,0.00024657,2]
[344522055,1733535033698,-500.0,0.00024657,2]
[344522056,1733535033708,-500.0,0.00024657,2]
[344522057,1733535033717,-775.68,0.00024657,2]
[344522058,1733535033727,-500.0,0.00024657,2]
[344522059,1733535033737,-500.0,0.00024657,2]
[344522060,1733535033746,-500.0,0.00024657,2]
[344522061,1733535033755,-500.0,0.00024657,2]
[344522062,1733535033765,-500.0,0.00024657,2]
[344522063,1733535033774,-500.0,0.00024657,2]
[344522064,1733535033783,-590.03,0.00024657,2]
[344522065,1733535033792,-500.0,0.00024657,2]
[344522066,1733535033802,-500.0,0.00024657,2]
[344522067,1733535033811,-501.56694267,0.00024657,2]
[344522068,1733535033821,-500.0,0.00024657,2]
[344522069,1733535033831,-500.0,0.00024657,2]
[344522070,1733535033840,-501.92273674,0.00024657,2]
[344522071,1733535033850,-500.0,0.00024657,2]
[344522072,1733535033861,-500.0,0.00024657,2]
[344522073,1733535033871,-500.0,0.00024657,2]
[344522074,1733535033882,-503.2896301,0.00024657,2]
[344522075,1733535033892,-500.0,0.00024657,2]
[344522076,1733535033902,-500.0,0.00024657,2]
[344522077,1733535033912,-500.0,0.00024657,2]
[344522078,1733535033922,-501.84103313,0.00024657,2]
[344522079,1733535033932,-500.5188417,0.00024657,2]
[344522080,1733535033946,-500.0,0.00024657,2]
[344522081,1733535033956,-500.0,0.00024657,2]
[344522082,1733535033965,-500.0,0.00024657,2]
[344522083,1733535033975,-500.0,0.00024657,2]
[344522084,1733535033984,-500.0,0.00024657,2]
[344522085,1733535033993,-502.86441556,0.00024657,2]
[344522086,1733535034003,-500.0,0.00024657,2]
[344522087,1733535034012,-500.0,0.00024657,2]
[344522088,1733535034021,-373.7863924,0.00024657,2]
[344522089,1733535034031,-501.45489269,0.00024657,2]
[344522090,1733535034040,-526.91,0.00024657,2]
[344522091,1733535034050,-500.0,0.00024657,2]
[344522092,1733535034059,-1000.0,0.00024657,5]
[344522093,1733535034069,-500.0,0.00024657,2]
[344522094,1733535034079,-500.0,0.00024657,2]
[344522095,1733535034089,-500.0,0.00024657,2]
[344522096,1733535034099,-575.05,0.00024657,2]
[344522097,1733535034108,-500.0,0.00024657,2]
[344522098,1733535034117,-500.0,0.00024657,2]
[344522099,1733535034127,-500.0,0.00024657,2]
[344522100,1733535034136,-500.0,0.00024657,2]
[344522101,1733535034145,-500.0,0.00024657,2]
[344522102,1733535034155,-500.0,0.00024657,2]
[344522103,1733535034164,-514.32,0.00024657,2]
[344522104,1733535034174,-500.0,0.00024657,2]
[344522105,1733535034188,-500.0,0.00024657,2]
[344522106,1733535034198,-487.42814994,0.00024657,2]
[344522107,1733535034207,-500.0,0.00024657,2]
[344522108,1733535034217,-383.4095892,0.00024657,2]
[344522109,1733535034227,-682.79,0.00024657,2]
[344522110,1733535034237,-500.0,0.00024657,2]
[344522111,1733535034247,-500.0,0.00024657,2]
[344522112,1733535034259,-500.0,0.00024657,2]
[344522113,1733535034269,-500.0,0.00024657,2]
[344522114,1733535034279,-500.0,0.00024657,2]
[344522115,1733535034289,-500.0,0.00024657,2]
[344522116,1733535034299,-502.62253846,0.00024657,2]
[344522117,1733535034309,-500.0,0.00024657,2]
[344522118,1733535034319,-500.0,0.00024657,2]
[344522119,1733535034329,-500.0,0.00024657,2]
[344522120,1733535034339,-500.0,0.00024657,2]
[344522121,1733535034349,-500.0,0.00024657,2]
[344522122,1733535034359,-171.66332462,0.00024657,2]
[344522123,1733535034371,-170.03036033,0.00024657,2]
[344522124,1733535034381,-500.0,0.00024657,2]
[344522125,1733535034390,-297.92549539,0.00024657,2]
[344522126,1733535034400,-524.99,0.00024657,2]
[344522127,1733535034410,-500.0,0.00024657,2]
[344522128,1733535034420,-500.0,0.00024657,2]
[344522129,1733535034430,-500.0,0.00024657,2]
[344522130,1733535034445,-500.0,0.00024657,2]
[344522131,1733535034454,-500.0,0.00024657,2]
[344522132,1733535034465,-500.0,0.00024657,2]
[344522133,1733535034475,-500.0,0.00024657,2]
[344522134,1733535034486,-502.77371494,0.00024657,2]
[344522135,1733535034496,-190.50934444,0.00024657,2]
[344522136,1733535034505,-500.0,0.00024657,2]
[344522137,1733535034515,-500.0,0.00024657,2]
[344522138,1733535034525,-500.0,0.00024657,2]
[344522139,1733535034536,-500.0,0.00024657,2]
[344522140,1733535034546,-500.0,0.00024657,2]
[344522141,1733535034555,-673.05,0.00024657,2]
[344522142,1733535034565,-500.0,0.00024657,2]
[344522143,1733535034574,-500.0,0.00024657,2]
[344522144,1733535034584,-249.38818551,0.00024657,2]
[344522145,1733535034598,-500.0,0.00024657,2]
[344522146,1733535034607,-500.0,0.00024657,2]
[344522148,1733535034617,-500.0,0.00024657,2]
[344522149,1733535034627,-500.0,0.00024657,2]
[344522150,1733535034638,-500.0,0.00024657,2]
[344522151,1733535034648,-500.0,0.00024657,2]
[344522152,1733535034658,-500.0,0.00024657,2]
[344522153,1733535034667,-500.0,0.00024657,2]
[344522154,1733535034678,-500.0,0.00024657,2]
[344522155,1733535034691,-500.0,0.00024657,2]
[344522156,1733535034701,-500.0,0.00024657,2]
[344522157,1733535034711,-500.0,0.00024657,2]
[344522158,1733535034723,-500.0,0.00024657,2]
[344522159,1733535034733,-500.0,0.00024657,2]
[344522161,1733535034743,-500.0,0.00024657,2]
[344522162,1733535034753,-500.0,0.00024657,2]
[344522163,1733535034763,-500.0,0.00024657,2]
[344522164,1733535034772,-2144.35,0.00024657,2]
[344522165,1733535034782,-240.81230836,0.00024657,2]
[344522166,1733535034792,-500.0,0.00024657,2]
[344522167,1733535034801,-500.0,0.00024657,2]
[344522168,1733535034811,-408.244277,0.00024657,7]
[344522169,1733535034820,-151.0,0.00024657,7]
[344522170,1733535034830,-408.244277,0.00024657,7]
[344522171,1733535034840,-151.0,0.00024657,7]
[344522172,1733535034850,-408.244277,0.00024657,7]
[344522173,1733535034860,-500.0,0.00024657,2]
[344522174,1733535034869,-151.0,0.00024657,7]
[344522175,1733535034880,-408.244277,0.00024657,7]
[344522176,1733535034890,-500.0,0.00024657,2]
[344522177,1733535034900,-500.0,0.00024657,2]
[344522178,1733535034910,-363.31500711,0.00024657,2]
[344522179,1733535034919,-500.0,0.00024657,2]
[344522180,1733535034929,-408.244277,0.00024657,7]
[344522181,1733535034941,-500.0,0.00024657,2]
[344522182,1733535034951,-500.0,0.00024657,2]
[344522183,1733535034960,-408.244277,0.00024657,7]
[344522184,1733535034970,-408.244277,0.00024657,7]
[344522185,1733535034980,-408.244277,0.00024657,7]
[344522186,1733535034989,-500.0,0.00024657,2]
[344522187,1733535034999,-600.99,0.00024657,2]
[344522188,1733535035009,-500.0,0.00024657,2]
[344522189,1733535035019,-231.65774647,0.00024657,2]
[344522190,1733535035051,-268.34225353,0.00024657,2]
[344522191,1733535035061,-500.0,0.00024657,2]
[344522192,1733535035070,-538.039465,0.00024657,2]
[344522193,1733535035081,-9.81350943,0.00024657,2]
[344522194,1733535035091,-500.0,0.00024657,2]
[344522195,1733535035101,-500.0,0.00024657,2]
[344522196,1733535035110,-500.0,0.00024657,2]
[344522197,1733535035119,-500.0,0.00024657,2]
[344522198,1733535035128,-500.0,0.00024657,2]
[344522199,1733535035139,-500.0,0.00024657,2]
[344522200,1733535035150,-500.0,0.00024657,2]
[344522201,1733535035160,-500.0,0.00024657,2]
[344522202,1733535035170,-500.0,0.00024657,2]
[344522203,1733535035180,-152.795366,0.00024657,7]
[344522204,1733535035191,-506.62471183,0.00024657,2]
[344522205,1733535035201,-500.0,0.00024657,2]
[344522206,1733535035210,-500.0,0.00024657,2]
[344522207,1733535035220,-500.0,0.00024657,2]
[344522208,1733535035229,-500.0,0.00024657,2]
[344522209,1733535035239,-500.0,0.00024657,2]
[344522210,1733535035249,-151.0,0.00024657,7]
[344522211,1733535035260,-609.14,0.00024657,2]
[344522212,1733535035270,-151.0,0.00024657,7]
[344522213,1733535035280,-251.909824,0.00024657,7]
[344522214,1733535035290,-500.0,0.00024657,2]
[344522215,1733535035299,-500.0,0.00024657,2]
[344522216,1733535035308,-504.29610527,0.00024657,2]
[344522217,1733535035318,-151.0,0.00024657,7]
[344522218,1733535035327,-151.0,0.00024657,7]
[344522219,1733535035337,-500.0,0.00024657,2]
[344522220,1733535035347,-500.0,0.00024657,2]
[344522221,1733535035357,-500.0,0.00024657,2]
[344522222,1733535035367,-500.0,0.00024657,2]
[344522223,1733535035376,-500.0,0.00024657,2]
[344522224,1733535035386,-502.98407879,0.00024657,2]
[344522225,1733535035396,-500.0,0.00024657,2]
[344522226,1733535035405,-500.0,0.00024657,2]
[344522227,1733535035415,-500.0,0.00024657,2]
[344522228,1733535035425,-500.0,0.00024657,2]
[344522229,1733535035437,-500.0,0.00024657,2]
[344522230,1733535035447,-500.0,0.00024657,2]
[344522231,1733535035456,-500.0,0.00024657,2]
[344522232,1733535035467,-151.0,0.00024657,7]
[344522233,1733535035476,-151.0,0.00024657,7]
[344522234,1733535035569,-151.0,0.00024657,7]
[344522235,1733535035579,-500.0,0.00024657,2]
[344522236,1733535035590,-500.0,0.00024657,2]
[344522237,1733535035601,-105.18421049,0.00024657,2]
[344522408,1733535046058,-125.79600081,0.00024657,2]
[344522409,1733535046068,-500.0,0.00024657,2]
[344522411,1733535046077,-500.0,0.00024657,2]
[344522413,1733535046086,-500.0,0.00024657,2]
[344522416,1733535046097,-500.0,0.00024657,2]
[344522418,1733535046106,-338.40409919,0.00024657,2]
[344523837,1733535423034,168.23701,0.00013973,2]
[344524278,1733535724061,165.823536,0.000261,60]
[344524527,1733535935776,4689.7402824,0.000261,120]
[344524560,1733536034472,176.604093,0.00013973,2]
[344524806,1733536235698,-176.604093,0.00020447,2]
[344524807,1733536235709,-256.4094257,0.00023405,2]
[344524808,1733536235722,-14.18648124,0.0002366,2]
[344524809,1733536235736,-285.81351876,0.0002366,2]
[344524810,1733536235748,-300.0,0.0002366,2]
[344524811,1733536235760,-2282.83061921,0.00023661,2]
[344524812,1733536235775,-22617.16938079,0.00023661,2]
[344524813,1733536235786,-331.088,0.0002375,2]
[344524814,1733536235797,-1106.20469188,0.00024557,2]
[344524815,1733536235809,-500.0,0.00024656,2]
[344524816,1733536235820,-500.0,0.00024656,2]
[344524817,1733536235831,-266.74582237,0.00024656,2]
[344524818,1733536235843,-1364.010019,0.00024657,7]
[344524819,1733536235855,-1364.010019,0.00024657,7]
[344524820,1733536235867,-1364.010019,0.00024657,7]
[344524821,1733536235878,-151.0,0.00024657,7]
[344524822,1733536235890,-151.0,0.00024657,7]
[344524823,1733536235901,-151.0,0.00024657,7]
[344524824,1733536235912,-151.0,0.00024657,7]
[344524825,1733536235922,-151.0,0.00024657,7]
[344524826,1733536235933,-151.0,0.00024657,7]
[344524827,1733536235944,-151.0,0.00024657,7]
[344524828,1733536235955,-151.0,0.00024657,7]
[344524829,1733536235966,-151.0,0.00024657,7]
[344524830,1733536235977,-151.0,0.00024657,7]
[344524831,1733536235989,-151.0,0.00024657,7]
[344524832,1733536236001,-151.0,0.00024657,7]
[344524833,1733536236012,-500.0,0.00024657,2]
[344524834,1733536236022,-500.0,0.00024657,2]
[344524835,1733536236034,-500.0,0.00024657,2]
[344524836,1733536236046,-152.637786,0.00024657,7]
[344524837,1733536236058,-500.0,0.00024657,2]
[344524838,1733536236070,-501.23452214,0.00024657,2]
[344524839,1733536236081,-502.4733482,0.00024657,2]
[344524840,1733536236093,-495.93143856,0.00024657,2]
[344524841,1733536236104,-500.0,0.00024657,2]
[344524842,1733536236116,-500.0,0.00024657,2]
[344524843,1733536236127,-500.0,0.00024657,2]
[344524844,1733536236137,-500.0,0.00024657,2]
[344524845,1733536236146,-500.0,0.00024657,2]
[344524846,1733536236292,-500.0,0.00024657,2]
[344524847,1733536236302,-550.35861825,0.00024657,2]
[344524848,1733536236312,-500.0,0.00024657,2]
[344524849,1733536236321,-500.0,0.00024657,2]
[344524850,1733536236330,-500.0,0.00024657,2]
[344524851,1733536236339,-500.0,0.00024657,2]
[344524852,1733536236347,-517.485561,0.00024657,7]
[344524853,1733536236358,-517.485561,0.00024657,7]
[344524854,1733536236368,-517.485561,0.00024657,7]
[344524855,1733536236377,-500.0,0.00024657,2]
[344524856,1733536236386,-517.485561,0.00024657,7]
[344524857,1733536236396,-517.485561,0.00024657,7]
[344524858,1733536236405,-517.485561,0.00024657,7]
[344524859,1733536236414,-517.485561,0.00024657,7]
[344524860,1733536236424,-500.0,0.00024657,2]
[344524861,1733536236434,-517.485561,0.00024657,7]
[344524862,1733536236443,-517.485561,0.00024657,7]
[344524863,1733536236453,-542.53136653,0.00024657,2]
[344524864,1733536236462,-517.485561,0.00024657,7]
[344524865,1733536236472,-517.485561,0.00024657,7]
[344524866,1733536236481,-517.485561,0.00024657,7]
[344524867,1733536236491,-500.0,0.00024657,2]
[344524868,1733536236501,-517.485561,0.00024657,7]
[344524869,1733536236510,-517.485561,0.00024657,7]
[344524870,1733536236520,-500.0,0.00024657,2]
[344524871,1733536236529,-500.0,0.00024657,2]
[344524872,1733536236539,-503.62182939,0.00024657,2]
[344524873,1733536236550,-500.0,0.00024657,2]
[344524874,1733536236561,-500.0,0.00024657,2]
[344524876,1733536236571,-500.0,0.00024657,2]
[344524877,1733536236580,-500.0,0.00024657,2]
[344524878,1733536236589,-500.0,0.00024657,2]
[344524879,1733536236599,-500.0,0.00024657,2]
[344524880,1733536236609,-521.90078752,0.00024657,2]
[344524881,1733536236618,-500.0,0.00024657,2]
[344524882,1733536236628,-500.0,0.00024657,2]
[344524883,1733536236637,-500.0,0.00024657,2]
[344524884,1733536236646,-500.0,0.00024657,2]
[344524885,1733536236656,-500.0,0.00024657,2]
[344524886,1733536236666,-500.0,0.00024657,2]
[344524887,1733536236675,-500.0,0.00024657,2]
[344524888,1733536236684,-500.0,0.00024657,2]
[344524889,1733536236693,-545.3826417,0.00024657,2]
[344524890,1733536236703,-177.43288604,0.00024657,2]
[344524891,1733536236712,-500.0,0.00024657,2]
[344524892,1733536236722,-506.56765643,0.00024657,2]
[344524893,1733536236732,-500.0,0.00024657,2]
[344524894,1733536236741,-500.0,0.00024657,2]
[344524895,1733536236751,-500.0,0.00024657,2]
[344524896,1733536236760,-505.26,0.00024657,2]
[344524897,1733536236770,-502.09692025,0.00024657,2]